Cogmind - Beta 9.3 @@@ ROGUE MODE // 2019.12.28 @ 00:32:10 // Winter2019/RPGLIKE Player: badjay Result: Destroyed by G-47 Trooper with Particle Gun Performance ------------- Evolutions (2) 1000 Regions Visited (5) 1000 Robots Destroyed (24) 120 Value Destroyed (624) 624 Prototype IDs (13) 260 Alien Tech Used (0) 0 Bonus (11) 11 TOTAL SCORE: 3015 Bonus ------- High Alert Combat Kills 11 Cogmind --------- Core Integrity 0/600 Matter 300/300 Energy 67/250 System Corruption 0% Temperature Cool (36) Movement Flying (37) Location -8/Materials Parts ------- > --- POWER (1) -------- Ion Engine > --- PROPULSION (2) --- Flight Unit Flight Unit > --- UTILITY (1) ------ Hacking Suite > --- WEAPON (3) ------- Shock Rifle Heavy EM Shotgun Light EM Pulse Cannon > --- INVENTORY (0) ---- (None) Peak State ------------ > --- POWER ------------ Light Angular Momentum Engine > --- PROPULSION ------- Flight Unit Flight Unit > --- UTILITY ---------- Advanced Signal Interpreter > --- WEAPON ----------- Shock Rifle Heavy EM Shotgun Light EM Pulse Cannon > --- INVENTORY -------- (None) [Rating: 19] Favorites ----------- Power Ion Engine Engine Ion Engine Propulsion Flight Unit Flight Unit Flight Unit Utility Advanced Signal Interpreter Processor Advanced Signal Interpreter Hackware Hacking Suite Weapon EM Pulse Gun Energy Gun EM Pulse Gun Energy Cannon Light EM Pulse Cannon Build | -11 -10 -10 -10 -9 -8 ------- Run | Scr Mat Min Exi Min Mat Slots Evolved 3 | . . 1 . 2 . Power . | . . . . . . Propulsion 1 | . . 1 . . . Utility . | . . . . . . Weapon 2 | . . . . 2 . Parts Attached 12 | 2 1 1 . 2 6 Power 3 | 1 . . . . 2 Engine 3 | 1 . . . . 2 Core . | . . . . . . Reactor . | . . . . . . Propulsion 3 | . 1 1 . 1 . Treads . | . . . . . . Leg . | . . . . . . Wheel . | . . . . . . Hover . | . . . . . . Flight 3 | . 1 1 . 1 . Utility 2 | . . . . . 2 Device . | . . . . . . Storage . | . . . . . . Processor 1 | . . . . . 1 Hackware 1 | . . . . . 1 Protection . | . . . . . . Artifact . | . . . . . . Weapon 4 | 1 . . . 1 2 Energy Gun 3 | 1 . . . . 2 Energy Cannon 1 | . . . . 1 . Ballistic Gun . | . . . . . . Ballistic Cannon . | . . . . . . Launcher . | . . . . . . Special Weapon . | . . . . . . Impact Weapon . | . . . . . . Slashing Weapon . | . . . . . . Piercing Weapon . | . . . . . . Special Melee Weapon . | . . . . . . Unidentified Prototypes 1 | . . . . . 1 Parts Lost . | . . . . . . Power . | . . . . . . Propulsion . | . . . . . . Utility . | . . . . . . Weapon . | . . . . . . Highest Loss Streak . | . . . . . . Average Slot Usage (%) 71 | . 53 78 80 69 96 Engine 19 | . 25 21 20 14 13 Flight 20 | . 3 35 40 28 28 Processor 1 | . . . . . 8 Energy Gun 22 | . 25 21 20 14 27 Energy Cannon 4 | . . . . 12 14 Naked Turns . | . . . . . . Heaviest Build 16 | 7 7 7 7 11 16 Greatest Support 18 | 8 9 13 13 13 18 Greatest Overweight (x) 2 | 2 . . . . . Average Overweight (x) . | . . . . . . Largest Inventory Capacity . | . . . . . . Average Capacity . | . . . . . . Most Carried . | . . . . . . Average Carried . | . . . . . . Final Capacity . | . . . . . . Final Carried . | . . . . . . Class Distribution -------------------- 79% | Mutant 13% | Gunner 6% | Hacker-Gunner Dominant Class ---------------- Mutant | -10/Materials Mutant | -10/Mines Mutant | -10/Exiles Mutant | -9/Mines Gunner | -8/Materials Resources | -11 -10 -10 -10 -9 -8 ----------- Run | Scr Mat Min Exi Min Mat Matter Collected 320 | 220 10 10 . 10 70 Remotely . | . . . . . . Salvage Created 1044 | . 357 33 . 115 539 Parts 58 | . 11 8 . 13 26 Haulers Intercepted 2 | . 1 . . . 1 Recyclers Shooed . | . . . . . . Parts Field Recycled . | . . . . . . Retrieved Matter . | . . . . . . Parts Self-Destructed . | . . . . . . Prevented . | . . . . . . Kills | -11 -10 -10 -10 -9 -8 ------- Run | Scr Mat Min Exi Min Mat Combat Hostiles Destroyed 21 | . 5 3 . 7 6 Guns 13 | . 4 2 . 3 4 Cannons 3 | . . . . 2 1 AOE 4 | . . 1 . 2 1 Classes Destroyed 6 | . 3 1 . . 2 Hauler 2 | . 1 . . . 1 Watcher 1 | . 1 . . . . Swarmer 10 | . . 3 . 7 . Grunt 9 | . 5 . . . 4 Sentry 1 | . . . . . 1 Hunter 1 | . . . . . 1 Best Kill Streak 5 | . 5 3 . 4 3 Combat Bots Only 4 | . 4 3 . 4 3 Max Kills in Single Turn 2 | . 1 1 . 2 2 Gunslinging . | . . . . . . Exploded 2 | . . 1 . 2 1 Melee . | . . . . . . Uniques/NPCs Destroyed . | . . . . . . Combat | -11 -10 -10 -10 -9 -8 -------- Run | Scr Mat Min Exi Min Mat Damage Taken 861 | 8 242 52 . 184 375 Core 720 | 8 211 39 . 150 312 Absorbed by Shields . | . . . . . . Redirected to Core 466 | . 102 39 . 105 220 Core Remaining (%) 74 | 98 . . . 51 . Volleys Fired 59 | . 36 3 . 10 10 Largest 3 | . 1 1 . 2 3 Hottest 156 | . 40 40 . 96 156 Shots Fired 86 | . 36 3 . 20 27 Gun 66 | . 36 3 . 10 17 Cannon 20 | . . . . 10 10 Launcher . | . . . . . . Special . | . . . . . . Kinetic . | . . . . . . Thermal . | . . . . . . Explosive . | . . . . . . Electromagnetic 86 | . 36 3 . 20 27 Robot Hit Streak 17 | . 17 6 . 5 17 Robot Miss Streak 2 | . 1 . . 2 1 Penetration Max . | . . . . . . Secondary Targets . | . . . . . . Shots Hit Robots 70 | . 33 3 . 12 22 Core Hits 33 | . 10 3 . 8 12 Critical Hits 1 | . . . . 1 . Critical Kills . | . . . . . . Critical Parts Destroyed 1 | . . . . 1 . Melee Attacks . | . . . . . . Impact . | . . . . . . Slashing . | . . . . . . Piercing . | . . . . . . Sneak Attacks . | . . . . . . Combat Hostiles . | . . . . . . Follow-up Attacks . | . . . . . . Damage Inflicted 1439 | 16 544 94 . 226 559 Guns 930 | . 497 33 . 79 321 Cannons 258 | . . . . 76 182 Explosions 235 | . 47 61 . 71 56 Melee . | . . . . . . Ramming 16 | 16 . . . . . Kinetic . | . . . . . . Thermal 235 | . 47 61 . 71 56 Explosive . | . . . . . . Electromagnetic 1188 | . 497 33 . 155 503 Impact . | . . . . . . Slashing . | . . . . . . Piercing . | . . . . . . Highest Corruption . | . . . . . . Average Corruption . | . . . . . . Corruption Purged . | . . . . . . Overload Shots . | . . . . . . Overflow Damage . | . . . . . . Projectiles . | . . . . . . Explosions . | . . . . . . Melee . | . . . . . . Knockbacks . | . . . . . . Impact . | . . . . . . Kinetic . | . . . . . . Secondary . | . . . . . . Self-Inflicted Damage 39 | 8 . 31 . . . Shots 1 | . . 1 . . . Rammed 1 | 1 . . . . . Targets Rammed 1 | 1 . . . . . Kicked . | . . . . . . Crushed . | . . . . . . Highest Temperature 329 | . 48 18 . 226 329 Average Temperature 84 | . 19 11 . 102 116 Received Heat Transfer 312 | . 132 . . . 180 Siege Activations . | . . . . . . Robots Corrupted 1 | . 1 . . . . Combat Hostiles 1 | . 1 . . . . Parts Fried 6 | . 2 . . 1 3 Impact Corruptions . | . . . . . . Robots Melted . | . . . . . . Combat Hostiles . | . . . . . . Parts Melted . | . . . . . . Heat Transferred 250 | . 50 50 . 100 50 Parts Sabotaged . | . . . . . . Parts Stolen . | . . . . . . Parts Stripped . | . . . . . . Power Chain Reactions 4 | . 1 1 . 1 1 Missiles Intercepted . | . . . . . . Alert | -11 -10 -10 -10 -9 -8 ------- Run | Scr Mat Min Exi Min Mat Peak Influence 402 | . 215 153 . 175 402 Average Influence 114 | . 91 148 . 73 211 Maximum Alert Level 2 | . 1 . . . 2 Low Security (%) 82 | 100 91 100 . 100 43 Level 1 16 | . 8 . . . 50 Level 2 1 | . . . . . 6 Level 3 . | . . . . . . Level 4 . | . . . . . . Level 5 . | . . . . . . High Security . | . . . . . . Max Security . | . . . . . . Squads Dispatched 2 | . 1 . . . 1 Investigation . | . . . . . . Extermination . | . . . . . . Reinforcement 2 | . 1 . . . 1 Assault . | . . . . . . Garrison . | . . . . . . Intercept . | . . . . . . Construction Impeded . | . . . . . . Haulers Reinforced . | . . . . . . Stealth | -11 -10 -10 -10 -9 -8 --------- Run | Scr Mat Min Exi Min Mat Distress Signals 4 | . 2 . . . 2 Communications Jammed . | . . . . . . Distress Signals . | . . . . . . Times Spotted 45 | . 16 2 . 6 21 Peak Tracking Total 11 | . 6 2 . 4 11 Tactical Retreats 5 | . 2 . . . 3 Traps | -11 -10 -10 -10 -9 -8 ------- Run | Scr Mat Min Exi Min Mat Traps Triggered . | . . . . . . Indirectly . | . . . . . . Trap Hack Attempts . | . . . . . . Triggered . | . . . . . . Disarmed . | . . . . . . Reprogrammed . | . . . . . . Reused . | . . . . . . Traps Extracted . | . . . . . . Installed . | . . . . . . Triggered . | . . . . . . Machines | -11 -10 -10 -10 -9 -8 ---------- Run | Scr Mat Min Exi Min Mat Machines Disabled 3 | . . . . 1 2 Max in Single Turn 1 | . . . . 1 1 Machines Sabotaged . | . . . . . . Garrisons Compromised . | . . . . . . Overloaded Fab Kills . | . . . . . . Fab Network Shutdowns . | . . . . . . Hacking | -11 -10 -10 -10 -9 -8 --------- Run | Scr Mat Min Exi Min Mat Machines Accessed 10 | . 4 . . 1 5 Terminals 9 | . 4 . . 1 4 Fabricators . | . . . . . . Repair Stations . | . . . . . . Recycling Units . | . . . . . . Scanalyzers . | . . . . . . Garrison Access 1 | . . . . . 1 Total Hacks 34 | . 13 . . 2 19 Successful 24 | . 11 . . 1 12 Failed 10 | . 2 . . 1 7 Catastrophic 1 | . . . . 1 . Database Lockouts . | . . . . . . Manual 22 | . 5 . 1 1 15 Terminals 30 | . 13 . . 2 15 Fabricators . | . . . . . . Repair Stations . | . . . . . . Recycling Units . | . . . . . . Scanalyzers . | . . . . . . Garrison Access 4 | . . . . . 4 Terminal Hacks 16 | . 8 . . 1 7 Prototype ID Bank 7 | . 2 . . . 5 Branch Access Points 2 | . 1 . . . 1 Emergency Access Points 2 | . 1 . . . 1 Alert Level 2 | . 2 . . . . Hauler Manifests 1 | . 1 . . . . Zone Layout 2 | . 1 . . 1 . Fabricator Hacks . | . . . . . . Repair Station Hacks . | . . . . . . Recycling Unit Hacks . | . . . . . . Scanalyzer . | . . . . . . Garrison Access Hacks . | . . . . . . Unauthorized Hacks 21 | . 6 . . . 15 Terminals 6 | . 3 . . . 3 Botnet 6 | . 3 . . . 3 Fabricators . | . . . . . . Repair Stations . | . . . . . . Recycling Units . | . . . . . . Scanalyzers . | . . . . . . Garrison Access 2 | . . . . . 2 Restock 1 | . . . . . 1 Reprogram 1 | . . . . . 1 Data Cores Recovered . | . . . . . . Used . | . . . . . . Hacking Detections 10 | . 4 . . 1 5 Full Trace Events . | . . . . . . Feedback Events . | . . . . . . Feedback Blocked . | . . . . . . Robot Schematics Acquired . | . . . . . . Robots Built . | . . . . . . Matter . | . . . . . . Time . | . . . . . . Total Robot Build Rating . | . . . . . . Part Schematics Acquired . | . . . . . . Parts Built . | . . . . . . Matter . | . . . . . . Time . | . . . . . . Total Part Build Rating . | . . . . . . Parts Repaired . | . . . . . . Time . | . . . . . . Parts Recycled . | . . . . . . Recycled Matter . | . . . . . . Retrieved Matter . | . . . . . . Retrieved Components . | . . . . . . Parts Scanalyzed . | . . . . . . Part Schematics Acquired . | . . . . . . Parts Damaged . | . . . . . . Bothacking | -11 -10 -10 -10 -9 -8 ------------ Run | Scr Mat Min Exi Min Mat Used RIF Installer . | . . . . . . Robots Hacked . | . . . . . . Non-combat . | . . . . . . Combat . | . . . . . . Robot Hacks Applied . | . . . . . . Relay Couplers Released . | . . . . . . Robots Rewired . | . . . . . . Allies Hacked . | . . . . . . Hacks Repelled . | . . . . . . Allies | -11 -10 -10 -10 -9 -8 -------- Run | Scr Mat Min Exi Min Mat Total Allies . | . . . . . . Largest Group . | . . . . . . Highest-Rated Group . | . . . . . . Highest-Rated Ally . | . . . . . . Total Orders . | . . . . . . Ally Attacks . | . . . . . . Total Damage . | . . . . . . Kills . | . . . . . . Allies Corrupted . | . . . . . . Allies Melted . | . . . . . . Intel | -11 -10 -10 -10 -9 -8 ------- Run | Scr Mat Min Exi Min Mat Robot Analysis Total . | . . . . . . Derelict Logs Recovered 2 | . . . . 2 . Drone Launches . | . . . . . . Drone Recoveries . | . . . . . . Exploration | -11 -10 -10 -10 -9 -8 ------------- Run | Scr Mat Min Exi Min Mat Turns Passed 834 | 49 313 30 163 113 166 Spaces Moved 1405 | 43 406 60 440 186 270 Core 378 | 43 335 . . . . Treads . | . . . . . . Legs . | . . . . . . Wheels . | . . . . . . Hover . | . . . . . . Flight 1027 | . 71 60 440 186 270 Fastest Speed 37 | 50 40 37 37 37 37 Average Speed 42 | 98 48 37 37 37 37 Slowest Speed 150 | 150 50 40 37 37 37 Overloaded Moves . | . . . . . . Propulsion Burnouts . | . . . . . . Robots Hopped 6 | . . 1 . 1 4 Cave-ins Triggered . | . . . . . . Exploration Rate (%) 42 | 4 53 13 85 69 31 Regions Visited 5 Branch Regions 3 Pre-discovered Areas . | . . . . . . Known Exits Taken 1 | . 1 . . . . Unknown Exits Taken 4 | 1 . 1 1 1 . Scrap Searched 2 | . . 1 . 1 . Spaces Dug . | . . . . . . Terrain Destroyed 16 | . 5 6 . 2 3 Melee . | . . . . . . Projectile . | . . . . . . AOE 16 | . 5 6 . 2 3 Actions | -11 -10 -10 -10 -9 -8 --------- Run | Scr Mat Min Exi Min Mat Total 1552 | 48 485 62 439 208 310 Wait 75 | 3 42 . . 6 24 Move 1390 | 43 405 57 439 183 263 Hop 5 | . . 1 . 1 3 Pick Up . | . . . . . . Fast Attach 10 | 2 1 1 . 1 5 Attach . | . . . . . . Detach . | . . . . . . Swap 2 | . . . . 1 1 Drop 5 | . . . . 1 4 Fire 59 | . 36 3 . 10 10 Melee . | . . . . . . Ram . | . . . . . . Kick . | . . . . . . Crush . | . . . . . . Escape Stasis . | . . . . . . Rewire . | . . . . . . Trap . | . . . . . . Miscellaneous 6 | . 1 . . 5 . Route ------- -11/Scrapyard -10/Materials (discovered 3 exits: [*Mat] / *Min x2) -10/Mines -10/Exiles (discovered 2 exits: *Min x2) -9/Mines -8/Materials History --------- Turn | Location | Event 15 | -11/Scrapyard | Discovered new exit (range 16) 50 | -11/Scrapyard | Entered Materials 142 | -10/Materials | Identified exit to Mines 232 | -10/Materials | Discovered new exit (range 9) 317 | -10/Materials | Build established: Mutant 363 | -10/Materials | Entered Mines 367 | -10/Mines | Reached level 2 371 | -10/Mines | Upgraded with Propulsion slot (x1) 391 | -10/Mines | Deemed a non-threat by the Exiles lab entrance 392 | -10/Mines | Discovered new exit (range 5) 393 | -10/Mines | Entered Exiles 399 | -10/Exiles | Discovered new exit (range 15) 403 | -10/Exiles | Met 8R-AWN 409 | -10/Exiles | Met EX-HEX 424 | -10/Exiles | Met EX-DEC 435 | -10/Exiles | Visited The Gauntlet 483 | -10/Exiles | Discovered new exit (range 10) 509 | -10/Exiles | Met EX-BIN 556 | -10/Exiles | Entered Mines 557 | -9/Mines | Upgraded with Weapon slot (x2) 570 | -9/Mines | Core integrity fell below 50% 611 | -9/Mines | Learned Materials terminal intel 641 | -9/Mines | Discovered new exit (range 15) 642 | -9/Mines | Learned location of 1 exit from Proximity Caves 656 | -9/Mines | Reached level 3 669 | -9/Mines | Entered Materials 670 | -8/Materials | Loaded intel: 12 terminal locations 671 | -8/Materials | Reached level 4 696 | -8/Materials | Core integrity fell below 50% 768 | -8/Materials | Core integrity fell below 20% 835 | -8/Materials | Destroyed by G-47 Trooper with Particle Gun Last Messages --------------- 00787_ Acquired Hacking Suite. 00790_ Acquired 10 matter. 00792_ Connecting with Garrison Access... >>Trojan(Reprogram) Trojan loaded successfully. Testing... Dispatch confirmation system compromised. >>Trojan(Restock) Trojan loaded successfully. Testing... Manipulated coupler status records. 00794_ U-05 Engineer lays Concrete. 00795_ ALERT: Unscheduled coupler replacement inbound for Garrison vCe.6a. 00795_ U-05 Engineer lays Concrete. 00804_ Penetrated by Slug. 00806_ H-55 Commando destroyed. 00806_ A-02 Transporter destroyed. 00825_ Y-45 Defender destroyed. 00825_ Door malfunctions. 00828_ W-25 Informer sends out distress signal. Map ----- +----------------------------------------------------+ | ?????????????????????????????????????????????????? | | ?????????????????????????????????????????????????? | | ?????????????????????????????????????????????????? | | ?????????????????????????????????????????????????? | | ?????????????????????????????????????????????????? | | ?????????????????????????????????????????????????? | | ?????????????????????????????????????????????????? | | ?????????????????????????????????????????????????? | | ?????????????????????????????????????????????????? | | ?????????????????????????????????????????????????? | | ?????????????????????????????????????????????????? | | ????????????????????????????+????????????????????? | | ???????????????????????????? ????????????????????? | | ????????????######?????????? ????????????????????? | | ????????????# ?????????? ????????????????????? | | ????????????# =[ """?#?????? ????????????????????? | | ????????????# =! """ #?????# ????????????????????? | | ????????????# """ #?????# ????????????????????? | | ????????????# ! #?????# #???????????????????? | | ????????????# """ #?????# #???????????????????? | | ????????????# ] R" #?????# #???????????????????? | | ????????????# """ ##????# #???#####???????????? | | ????????????#! ] #????# #?? ????????????? | | ????????????#####/#####????# #?? """"????????????? | | ??????????????# [%=######## ## """""???????????? | | ??????????????# [=* @ p # """""???????????? | | ??????????????# ! gg + """""???????????? | | ??????????????# g # """""???????????? | | ??????????????# ####### # """""???????????? | | ????#######???#######?????#g #? """"????????????? | | ?? #???????????????# #? ????????????? | | # [ " #????????######?# #??#####???????????? | | # T #????????# ?# #??????????????????? | | # """ " #????????# # #??????????????????? | | # """ ##???????# # #??????????????????? | | # """ #???????# + #??????????????????? | | ? ?????????# # #??????????????????? | | ??? ???????????# # #??????????????????? | | #####+##################### #??????????????????? | | =*%*% #??????????????????? | | !*=[ +??????????????????? | | """ """ """ """!*""" """ #??????????????????? | | """ """ """ """ """ """ #??????????????????? | | """ """ """ """ """ """ !#??????????????????? | | #??????????????????? | | #??????????????????? | | #??????????????????? | | #??????????????????? | | #??????????????????? | | ################### #??????????????????? | +----------------------------------------------------+ Best States ------------- Heat Dissipation 25 Energy Generation 10 Energy Capacity 250 Matter Stores 300 Matter Capacity 300 Sight Range 16 Terrain Scan Density 10 Evasion (%) 62 Offensive Hacking 15 Defensive Hacking 5 Item Schematics ----------------- None Robot Schematics ------------------ None Fabricated ------------ Nothing Alien Tech Used ----------------- None Achievements -------------- None Challenges ------------ None RPGLIKE | -11 -10 -10 -10 -9 -8 --------- Run | Scr Mat Min Exi Min Mat Levels Raised 3 | . . 1 . 1 1 XP Earned 8575 | 3000 670 850 200 1375 2480 XP Spent 7400 | 2300 400 500 . 2100 2100 Upgrades 14 | 5 2 1 . 3 3 Propulsion Slot 1 | . . 1 . . . Weapon Slot 2 | . . . . 2 . Mass Support 2 | 1 . . . . 1 Ranged Accuracy 7 | 4 . . . 1 2 Hack Attack % 1 | . 1 . . . . Hack Defense % 1 | . 1 . . . . Protomatter Created 94 | . 46 12 . 36 . Integrity Restored 116 | . 8 . . 108 . Core 116 | . 8 . . 108 . Protomatter Decayed 43 | . 43 . . . . Game ------ Seed SubatomicLongswordPit Manual? 0 Play Time 00:17:31 Cumulative 111.8 hours Start 2019.12.28 @ 00:16:18 End 2019.12.28 @ 00:32:10 Sessions 1 Manual Loads 0 Difficulty Rogue Special Mode Winter2019/RPGLIKE Game No. 130 Rogue 130 Adventurer 0 Explorer 0 Win Type - Total 10 Types 9/0/0/1/0/0/0 Lore% 56 Gallery% 64 Achievement% 57 Wizard Run 0 Options --------- ASCII 0 Keyboard 0 Movement Numpad Keybinds 0 Fullscreen 2 Font 18/SmallcapsGlow Map View 76x50 Tactical HUD 1 Map Filters NONE Filters NONE Steam 1 RUN: a056e465-0fd8-4fe3-abaa-01c0c04f4271